Workbook

Sheet Arkusz1
A1: Odpowiedzi na pytania zawarte w pierwszej i drugiej części ankiety.
A2: czynniki kształtowania satysfakcji klienta | C2: RESPONDENCI - ILOŚĆ PUNKTÓW | X2: suma respondentów | Y2: suma punktów | Z2: średnia ważności | AA2: wskaźnik ważności w % | AB2: średnia satysfakcji | AC2: ocena satysfakcji
C3: I | D3: II | E3: III | F3: IV | G3: V | H3: VI | I3: VII | J3: VIII | K3: IX | L3: X | M3: XI | N3: XII | O3: XIII | P3: XIV | Q3: XV | R3: XVI | S3: XVII | T3: XVIII | U3: XIX | V3: XX | W3: XXI
A4: uprzejmość, kultura obsługi klienta | B4: ważność | C4: 3 | D4: 2 | E4: 2 | F4: 0 | G4: 3 | H4: 3 | I4: 3 | J4: 3 | K4: 3 | L4: 3 | M4: 2 | N4: 3 | O4: 2 | P4: 3 | Q4: 2 | R4: 3 | S4: 2 | T4: 3 | U4: 3 | V4: 3 | W4: 2 | X4: 20 | Y4: =SUM(C4:W4) -> 53 | Z4: =Y4/X4 -> 2.65 | AA4: =Z4/Z20*100 -> 13.0533814
B5: satysfakcja | C5: 2 | D5: 2 | E5: 3 | F5: 0 | G5: 3 | H5: 3 | I5: 2 | J5: 3 | K5: 3 | L5: 3 | M5: 3 | N5: 3 | O5: 2 | P5: 3 | Q5: 3 | R5: 3 | S5: 2 | T5: 3 | U5: 3 | V5: 3 | W5: 2 | Y5: =SUM(C5:W5) -> 54 | AB5: =Y5/X4 -> 2.7 | AC5: =AB5*AA4/100 -> 0.3524412977
A6: wiedza i kompetencja pracownika urzędu | B6: ważność | C6: 3 | D6: 2 | E6: 2 | F6: 0 | G6: 3 | H6: 3 | I6: 2 | J6: 2 | K6: 3 | L6: 3 | M6: 2 | N6: 3 | O6: 2 | P6: 3 | Q6: 2 | R6: 3 | S6: 3 | T6: 3 | U6: 3 | V6: 3 | W6: 3 | X6: 20 | Y6: =SUM(C6:W6) -> 53 | Z6: =Y6/X6 -> 2.65 | AA6: =Z6/Z20*100 -> 13.0533814
B7: satysfakcja | C7: 2 | D7: 2 | E7: 3 | F7: 0 | G7: 2 | H7: 3 | I7: 2 | J7: 3 | K7: 3 | L7: 3 | M7: 3 | N7: 3 | O7: 2 | P7: 3 | Q7: 3 | R7: 3 | S7: 2 | T7: 2 | U7: 3 | V7: 3 | W7: 2 | Y7: =SUM(C7:W7) -> 52 | AB7: =Y7/X6 -> 2.6 | AC7: =AB7*AA6/100 -> 0.3393879163
A8: terminowość załatwiania sprawy | B8: ważność | C8: 2 | D8: 1 | E8: 2 | F8: 0 | G8: 3 | H8: 3 | I8: 3 | J8: 2 | K8: 3 | L8: 3 | M8: 2 | N8: 3 | O8: 2 | P8: 3 | Q8: 2 | R8: 3 | S8: 2 | T8: 3 | U8: 3 | V8: 2 | W8: 3 | X8: 20 | Y8: =SUM(C8:W8) -> 50 | Z8: =Y8/X8 -> 2.5 | AA8: =Z8/Z20*100 -> 12.31451075
B9: satysfakcja | C9: 2 | D9: 3 | E9: 2 | F9: 0 | G9: 2 | H9: 3 | I9: 3 | J9: 3 | K9: 3 | L9: 3 | M9: 3 | N9: 3 | O9: 2 | P9: 2 | Q9: 3 | R9: 3 | S9: 3 | T9: 3 | U9: 3 | V9: 2 | W9: 1 | Y9: =SUM(C9:W9) -> 52 | AB9: =Y9/X8 -> 2.6 | AC9: =AB9*AA8/100 -> 0.3201772796
A10: warunki lokalowe urzędu | B10: ważność | C10: 2 | D10: 2 | E10: 1 | F10: 0 | G10: 2 | H10: 3 | I10: 2 | J10: 2 | K10: 2 | L10: 3 | M10: 2 | N10: 3 | O10: 3 | P10: 0 | Q10: 2 | R10: 3 | S10: 2 | T10: 3 | U10: 2 | V10: 2 | W10: 2 | X10: 19 | Y10: =SUM(C10:W10) -> 43 | Z10: =Y10/X10 -> 2.263157895 | AA10: =Z10/Z20*100 -> 11.14787289
B11: satysfakcja | C11: 2 | D11: 3 | E11: 2 | F11: 0 | G11: 3 | H11: 3 | I11: 3 | J11: 3 | K11: 1 | L11: 2 | M11: 3 | N11: 3 | O11: 3 | P11: 0 | Q11: 3 | R11: 3 | S11: 2 | T11: 3 | U11: 2 | V11: 3 | W11: 3 | Y11: =SUM(C11:W11) -> 50 | AB11: =Y11/X10 -> 2.631578947 | AC11: =AB11*AA10/100 -> 0.2933650761
A12: uzyskanie pełnej informacji na temat załatwienia sprawy | B12: ważność | C12: 2 | D12: 2 | E12: 2 | F12: 3 | G12: 2 | H12: 2 | I12: 2 | J12: 3 | K12: 3 | L12: 3 | M12: 2 | N12: 3 | O12: 3 | P12: 3 | Q12: 2 | R12: 3 | S12: 2 | T12: 3 | U12: 3 | V12: 2 | W12: 3 | X12: 21 | Y12: =SUM(C12:W12) -> 53 | Z12: =Y12/X12 -> 2.523809524 | AA12: =Z12/Z20*100 -> 12.43179181
B13: satysfakcja | C13: 3 | D13: 2 | E13: 3 | F13: 1 | G13: 3 | H13: 3 | I13: 3 | J13: 2 | K13: 3 | L13: 3 | M13: 3 | N13: 3 | O13: 3 | P13: 3 | Q13: 3 | R13: 3 | S13: 2 | T13: 2 | U13: 3 | V13: 2 | W13: 1 | Y13: =SUM(C13:W13) -> 54 | AB13: =Y13/X12 -> 2.571428571 | AC13: =AB13*AA12/100 -> 0.3196746465
A14: czas oczekiwania na przyjęcie przez urzędnika | B14: ważność | C14: 2 | D14: 1 | E14: 3 | F14: 2 | G14: 2 | H14: 2 | I14: 2 | J14: 3 | K14: 2 | L14: 3 | M14: 2 | N14: 3 | O14: 2 | P14: 3 | Q14: 2 | R14: 3 | S14: 2 | T14: 3 | U14: 3 | V14: 2 | W14: 3 | X14: 21 | Y14: =SUM(C14:W14) -> 50 | Z14: =Y14/X14 -> 2.380952381 | AA14: =Z14/Z20*100 -> 11.72810548
B15: satysfakcja | C15: 2 | D15: 2 | E15: 3 | F15: 2 | G15: 3 | H15: 3 | I15: 3 | J15: 2 | K15: 3 | L15: 2 | M15: 3 | N15: 3 | O15: 3 | P15: 2 | Q15: 3 | R15: 3 | S15: 2 | T15: 3 | U15: 3 | V15: 3 | W15: 1 | Y15: =SUM(C15:W15) -> 54 | AB15: =Y15/X14 -> 2.571428571 | AC15: =AB15*AA14/100 -> 0.3015798552
A16: dostęp do informacji, formularzy i ich czytelnośći (BIP) | B16: ważność | C16: 3 | D16: 2 | E16: 3 | F16: 2 | G16: 3 | H16: 3 | I16: 3 | J16: 3 | K16: 3 | L16: 3 | M16: 2 | N16: 3 | O16: 0 | P16: 0 | Q16: 2 | R16: 3 | S16: 0 | T16: 3 | U16: 3 | V16: 2 | W16: 3 | X16: 18 | Y16: =SUM(C16:W16) -> 49 | Z16: =Y16/X16 -> 2.722222222 | AA16: =Z16/Z20*100 -> 13.40913393
B17: satysfakcja | C17: 2 | D17: 3 | E17: 2 | F17: 2 | G17: 3 | H17: 3 | I17: 2 | J17: 2 | K17: 3 | L17: 2 | M17: 3 | N17: 3 | O17: 0 | P17: 0 | Q17: 2 | R17: 3 | S17: 0 | T17: 2 | U17: 3 | V17: 2 | W17: 2 | Y17: =SUM(C17:W17) -> 44 | AB17: =Y17/X16 -> 2.444444444 | AC17: =AB17*AA16/100 -> 0.3277788294
A18: pomoc w wypełnianiu dokumentów | B18: ważność | C18: 3 | D18: 1 | E18: 3 | F18: 0 | G18: 3 | H18: 3 | I18: 3 | J18: 3 | K18: 3 | L18: 3 | M18: 2 | N18: 3 | O18: 3 | P18: 2 | Q18: 2 | R18: 3 | S18: 0 | T18: 0 | U18: 3 | V18: 1 | W18: 3 | X18: 18 | Y18: =SUM(C18:W18) -> 47 | Z18: =Y18/X18 -> 2.611111111 | AA18: =Z18/Z20*100 -> 12.86182234
B19: satysfakcja | C19: 3 | D19: 3 | E19: 3 | F19: 0 | G19: 2 | H19: 3 | I19: 2 | J19: 3 | K19: 3 | L19: 3 | M19: 3 | N19: 3 | O19: 3 | P19: 3 | Q19: 3 | R19: 3 | S19: 0 | T19: 0 | U19: 3 | V19: 2 | W19: 2 | Y19: =SUM(C19:W19) -> 50 | AB19: =Y19/X18 -> 2.777777778 | AC19: =AB19*AA18/100 -> 0.3572728428
N20: suma ważności czynnika | Z20: =SUM(Z4:Z19) -> 20.30125313 | AA20: =SUM(AA4:AA18) -> 100 | AC20: =SUM(AC4:AC19) -> 2.611677744
N21: SATYSFAKCJA NA POZIOMIE | AB21: =(AC20*100)/3 -> 87.05592479 | AC21: %
B22: Raport z badania satysfakcji klientów 2015-2016 | AB22: Strona 3 z 5

Sheet Arkusz2

Sheet Arkusz3
